Cogmind - Beta 11.1 @@@ ROGUE MODE // 2022.06.01 @ 05:30:46 Player: youngster Result: Destroyed by D-53 Grenadier with Mini Grenade Launcher Performance ------------- Evolutions (0) 0 Regions Visited (2) 400 Robots Destroyed (22) 110 Value Destroyed (383) 383 Prototype IDs (2) 40 Alien Tech Used (0) 0 Bonus (-842) -842 TOTAL SCORE: 91 Bonus ------- Friendly Fire -842 Cogmind --------- Core Integrity 0/250 Matter 276/300 Energy 29/100 System Corruption 0% Temperature Cool (0) Movement Core (1400) Ox27 Location -10/Mines Parts ------- > --- POWER (1) -------- (None) > --- PROPULSION (2) --- (None) > --- UTILITY (2) ------ Huge Storage Unit Targeting Computer > --- WEAPON (2) ------- EM Pulse Gun > --- INVENTORY (25) --- Ion Engine Light Treads Light Treads Compact Wheel Large Matter Pod (150) YI-UF0's Bottomless Matter Pit Structural Scanner Transport Network Coupler Utility Shielding Utility Shielding Tractor Beam Field Recycling Unit (0) Assault Rifle Shotgun Shotgun Shotgun Shotgun Shotgun Shotgun Shotgun Grenade Launcher Grenade Launcher Datajack Peak State ------------ > --- POWER ------------ Ion Engine > --- PROPULSION ------- Light Treads Compact Wheel > --- UTILITY ---------- Huge Storage Unit Targeting Computer > --- WEAPON ----------- Shotgun Shotgun > --- INVENTORY -------- Ion Engine Light Treads Light Treads Light Treads Light Treads Compact Wheel Large Matter Pod Transport Network Coupler Utility Shielding Utility Shielding Utility Shielding Tractor Beam Field Recycling Unit EM Pulse Gun EM Pulse Gun EM Pulse Gun Assault Rifle Shotgun Shotgun Shotgun Shotgun Shotgun Grenade Launcher Datajack [Rating: 12] Favorites ----------- Power Ion Engine Engine Ion Engine Propulsion Light Treads Treads Light Treads Wheel Compact Wheel Utility Targeting Computer Storage High-capacity Storage Unit Processor Targeting Computer Protection Utility Shielding Weapon Assault Rifle Energy Gun EM Pulse Gun Ballistic Gun Assault Rifle Launcher Grenade Launcher Build | -11 -10 -10 ------- Run | Scr Mat Min Slots Evolved . | . . . Power . | . . . Propulsion . | . . . Utility . | . . . Weapon . | . . . Parts Attached 42 | 7 18 17 Power 3 | 1 2 . Engine 3 | 1 2 . Core . | . . . Reactor . | . . . Propulsion 6 | 2 1 3 Treads 4 | 2 . 2 Leg . | . . . Wheel 2 | . 1 1 Hover . | . . . Flight . | . . . Utility 5 | 1 4 . Device . | . . . Storage 3 | 1 2 . Processor 1 | . 1 . Hackware . | . . . Protection 1 | . 1 . Artifact . | . . . Weapon 28 | 3 11 14 Energy Gun 6 | 1 . 5 Energy Cannon . | . . . Ballistic Gun 16 | 2 8 6 Ballistic Cannon . | . . . Launcher 6 | . 3 3 Special Weapon . | . . . Impact Weapon . | . . . Slashing Weapon . | . . . Piercing Weapon . | . . . Special Melee Weapon . | . . . Unidentified Prototypes . | . . . Parts Lost 7 | . . 7 Power 1 | . . 1 Propulsion 4 | . . 4 Utility . | . . . Weapon 2 | . . 2 Highest Loss Streak 6 | . . 6 To Critical Strikes . | . . . Average Slot Usage (%) 96 | . 95 98 Engine 13 | . 14 13 Treads 22 | . 24 14 Wheel 5 | . 3 13 Storage 14 | . 14 14 Processor 8 | . 7 14 Protection 1 | . 1 . Energy Gun 1 | . . 4 Ballistic Gun 26 | . 27 22 Naked Turns . | . . . Heaviest Build 91 | 14 91 91 Greatest Support 40 | 40 40 16 Greatest Overweight (x) 5 | . 5 5 Average Overweight (x) 2 | . 2 5 Largest Inventory Capacity 25 | 8 25 25 Average Capacity 20 | 6 19 25 Most Carried 25 | 3 25 25 Average Carried 16 | 1 13 24 Final Capacity 25 | 8 25 25 Final Carried 25 | 3 25 23 Class Distribution -------------------- 100% | Mutant Dominant Class ---------------- Mutant | -10/Materials Mutant | -10/Mines Resources | -11 -10 -10 ----------- Run | Scr Mat Min Matter Collected 1212 | 223 508 481 Remotely . | . . . Salvage Created 809 | . 583 226 Parts 47 | . 44 3 Haulers Intercepted 2 | . 2 . Recyclers Shooed . | . . . Parts Field Recycled . | . . . Retrieved Matter . | . . . Parts Self-Destructed . | . . . Prevented . | . . . Kills | -11 -10 -10 ------- Run | Scr Mat Min Combat Hostiles Destroyed 26 | . 14 12 Guns 16 | . 11 5 AOE 10 | . 3 7 Classes Destroyed 6 | . 5 1 Hauler 2 | . 2 . Recycler 2 | . 2 . Watcher 1 | . 1 . Swarmer 9 | . 9 . Grunt 7 | . 5 2 Assembled 10 | . . 10 Best Kill Streak 8 | . 4 8 Combat Bots Only 8 | . 3 8 Max Kills in Single Turn 4 | . 2 4 Gunslinging . | . . . Exploded 4 | . 2 4 Melee . | . . . Uniques/NPCs Destroyed 1 | . . 1 YI-UF0 (-10/Mines) Combat | -11 -10 -10 -------- Run | Scr Mat Min Damage Taken 1128 | . 341 787 Core 261 | . 79 182 Absorbed by Shields . | . . . Regen/Repaired (Parts) 24 | . 24 . Core Remaining (%) 100 | 100 . . Volleys Fired 77 | . 43 34 Largest 2 | . 2 2 Hottest 80 | . 60 80 Shots Fired 137 | . 81 56 Gun 127 | . 76 51 Cannon . | . . . Launcher 10 | . 5 5 Special . | . . . Kinetic 98 | . 73 25 Thermal . | . . . Explosive 10 | . 5 5 Electromagnetic 29 | . 3 26 Robot Hit Streak 8 | . 8 6 Robot Miss Streak 5 | . 3 5 Penetration Max . | . . . Secondary Targets 2 | . 1 1 Max Gunslinging Chain 1 | . 1 1 Shots Hit Robots 79 | . 46 33 Core Hits 57 | . 29 28 Critical Kills . | . . . Critical Parts Destroyed . | . . . Critical Strikes . | . . . Melee Attacks . | . . . Impact . | . . . Slashing . | . . . Piercing . | . . . Sneak Attacks . | . . . Combat Hostiles . | . . . Follow-up Attacks . | . . . Damage Inflicted 1536 | . 739 797 Guns 992 | . 592 400 Cannons . | . . . Explosions 533 | . 136 397 Melee . | . . . Ramming 11 | . 11 . Kinetic 795 | . 568 227 Thermal . | . . . Explosive 533 | . 136 397 Electromagnetic 197 | . 24 173 Impact . | . . . Slashing . | . . . Piercing . | . . . Highest Corruption . | . . . Average Corruption . | . . . Corruption Purged . | . . . Corruption Blocked . | . . . Overload Shots . | . . . Overflow Damage . | . . . Projectiles . | . . . Explosions . | . . . Melee . | . . . Knockbacks 1 | . 1 . Impact 1 | . 1 . Kinetic . | . . . Secondary . | . . . Self-Inflicted Damage 34 | . 31 3 Shots 2 | . 1 1 Rammed 3 | . 3 . Targets Rammed 3 | . 3 . Kicked . | . . . Crushed . | . . . Highest Temperature 90 | . . 90 Average Temperature 25 | . . 25 Received Heat Transfer 111 | . 42 69 Siege Activations . | . . . Robots Corrupted 1 | . . 1 Combat Hostiles . | . . . Parts Fried 2 | . . 2 Impact Corruptions . | . . . Robots Melted . | . . . Combat Hostiles . | . . . Parts Melted . | . . . Heat Transferred . | . . . Parts Sabotaged . | . . . Parts Stolen . | . . . Parts Stripped . | . . . Power Chain Reactions . | . . . Missiles Intercepted . | . . . Alert | -11 -10 -10 ------- Run | Scr Mat Min Peak Influence 295 | . 295 56 Initial . | . . . Average 97 | . 117 45 Maximum Alert Level 1 | . 1 . Low Security (%) 93 | 100 91 100 Level 1 6 | . 8 . Level 2 . | . . . Level 3 . | . . . Level 4 . | . . . Level 5 . | . . . High Security . | . . . Max Security . | . . . Squads Dispatched 2 | . 2 . Investigation 2 | . 2 . Extermination . | . . . Reinforcement . | . . . Assault . | . . . Garrison . | . . . Intercept . | . . . Searches Triggered . | . . . Construction Impeded . | . . . Haulers Reinforced . | . . . Active Scanning Responses . | . . . Cargo Convoy Interrupts . | . . . Stealth | -11 -10 -10 --------- Run | Scr Mat Min Distress Signals 2 | . 1 1 Communications Jammed . | . . . Distress Signals . | . . . Times Spotted 44 | . 28 16 Peak Tracking Total 5 | . 5 5 Tactical Retreats 2 | . 1 1 Traps | -11 -10 -10 ------- Run | Scr Mat Min Traps Triggered 1 | . 1 . Indirectly . | . . . Trap Hack Attempts . | . . . Triggered . | . . . Disarmed . | . . . Reprogrammed . | . . . Reused . | . . . Traps Extracted . | . . . Installed . | . . . Triggered . | . . . Machines | -11 -10 -10 ---------- Run | Scr Mat Min Machines Disabled 1 | . 1 . Max in Single Turn 1 | . 1 . Machines Sabotaged . | . . . Garrisons Compromised . | . . . Overloaded Fab Kills . | . . . Hacking | -11 -10 -10 --------- Run | Scr Mat Min Machines Accessed 11 | . 11 . Terminals 8 | . 8 . Fabricators . | . . . Repair Stations 1 | . 1 . Recycling Units 2 | . 2 . Scanalyzers . | . . . Garrison Access . | . . . Total Hacks 21 | . 21 . Successful 11 | . 11 . Failed 9 | . 9 . Catastrophic 3 | . 3 . Database Lockouts 1 | . 1 . Manual 14 | . 14 . Terminals 17 | . 17 . Fabricators . | . . . Repair Stations 2 | . 2 . Recycling Units 2 | . 2 . Scanalyzers . | . . . Garrison Access . | . . . Terminal Hacks 6 | . 6 . Part Schematic 1 | . 1 . Robot Analysis 1 | . 1 . Prototype ID Bank 1 | . 1 . Unreport Threat 1 | . 1 . Locate Traps 2 | . 2 . Fabricator Hacks . | . . . Repair Station Hacks 2 | . 2 . Scan Component 1 | . 1 . Repair 1 | . 1 . Recycling Unit Hacks . | . . . Scanalyzer . | . . . Garrison Access Hacks . | . . . Unauthorized Hacks 3 | . 3 . Terminals 1 | . 1 . Operators 1 | . 1 . Fabricators . | . . . Repair Stations . | . . . Recycling Units 2 | . 2 . Tunnel 2 | . 2 . Scanalyzers . | . . . Garrison Access . | . . . Data Cores Recovered . | . . . Used . | . . . Hacking Detections 9 | . 9 . Full Trace Events . | . . . Feedback Events . | . . . Feedback Blocked . | . . . Robot Schematics Acquired . | . . . Robots Built . | . . . Authchips . | . . . Time . | . . . Total Robot Build Rating . | . . . Part Schematics Acquired 1 | . 1 . Parts Built . | . . . Authchips . | . . . Time . | . . . Total Part Build Rating . | . . . Parts Repaired 1 | . 1 . Time 26 | . 26 . Parts Recycled . | . . . Recycled Matter . | . . . Retrieved Matter . | . . . Retrieved Components . | . . . Parts Scanalyzed . | . . . Part Schematics Acquired . | . . . Parts Damaged . | . . . Bothacking | -11 -10 -10 ------------ Run | Scr Mat Min Used RIF Installer . | . . . Robots Hacked . | . . . Non-combat . | . . . Combat . | . . . Robot Hacks Applied . | . . . Relay Couplers Released . | . . . Fabnet Peak Effective % . | . . . Robots Rewired . | . . . Allies Hacked . | . . . Hacks Repelled . | . . . Allies | -11 -10 -10 -------- Run | Scr Mat Min Total Allies . | . . . Largest Group . | . . . Highest-Rated Group . | . . . Highest-Rated Ally . | . . . Total Orders . | . . . Ally Attacks . | . . . Total Damage . | . . . Kills . | . . . Allies Corrupted . | . . . Allies Melted . | . . . Intel | -11 -10 -10 ------- Run | Scr Mat Min Robot Analysis Total 1 | . 1 . Derelict Logs Recovered 1 | . . 1 Drone Launches . | . . . Drone Recoveries . | . . . Exploration | -11 -10 -10 ------------- Run | Scr Mat Min Turns Passed 2782 | 73 2063 646 Spaces Moved 1214 | 41 881 292 Core 4 | 4 . . Treads 662 | 37 625 . Legs . | . . . Wheels 548 | . 256 292 Hover . | . . . Flight . | . . . Fastest Speed 50 | 50 160 175 Average Speed 198 | 149 208 175 Slowest Speed 240 | 160 240 175 Overloaded Moves . | . . . Propulsion Burnouts . | . . . Robots Hopped . | . . . Cave-ins Triggered . | . . . Exploration Rate (%) 58 | 4 97 73 Regions Visited 2 Branch Regions 1 Pre-discovered Areas 4 | . 2 2 Known Exits Taken . | . . . Unknown Exits Taken 2 | 1 1 . Scrap Searched . | . . . Spaces Dug 40 | . 31 9 Terrain Destroyed 67 | . 35 32 Melee . | . . . Projectile . | . . . AOE 67 | . 35 32 Terrain Rammed . | . . . Walls Destroyed . | . . . Machines Disabled . | . . . Actions | -11 -10 -10 --------- Run | Scr Mat Min Total 1438 | 50 1022 366 Wait 53 | . 36 17 Move 1212 | 40 880 292 Hop . | . . . Pick Up 35 | 2 30 3 Fast Attach 11 | 7 4 . Attach 4 | . 1 3 Detach 2 | 1 1 . Swap 27 | . 13 14 Drop 14 | . 11 3 Fire 77 | . 43 34 Melee . | . . . Ram . | . . . Kick . | . . . Crush 3 | . 3 . Escape Stasis . | . . . Rewire . | . . . Trap . | . . . Miscellaneous . | . . . Route ------- -11/Scrapyard -10/Materials (discovered 5 exits: [*Mat x3] / [*Min x2]) -10/Mines (discovered 2 exits: [*Mat x2]) History --------- Turn | Location | Event 3 | -11/Scrapyard | Discovered new exit (range 15) 74 | -11/Scrapyard | Entered Materials 148 | -10/Materials | Discovered new exit (range 16) 305 | -10/Materials | Build established: Mutant 569 | -10/Materials | Discovered new exit (range 10) 1206 | -10/Materials | Discovered new exit (range 8) 1376 | -10/Materials | Discovered new exit (range 15) 1663 | -10/Materials | Discovered new exit (range 9) 1684 | -10/Materials | Central database locked down 2061 | -10/Materials | Repaired Grenade Launcher 2137 | -10/Materials | Entered Mines 2352 | -10/Mines | Discovered new exit (range 10) 2357 | -10/Mines | Learned location of Storage (-8) 2438 | -10/Mines | YI-UF0 nonchalantly dropped a Grenade Launcher on the ground 2489 | -10/Mines | Destroyed YI-UF0 2506 | -10/Mines | Found Corrupted Prototype Storage 2513 | -10/Mines | Assembled infested the area 2541 | -10/Mines | Core integrity fell below 50% 2577 | -10/Mines | Destroyed 8 combat bots 2605 | -10/Mines | Discovered new exit (range 12) 2774 | -10/Mines | Core integrity fell below 20% 2783 | -10/Mines | Destroyed by D-53 Grenadier with Mini Grenade Launcher Last Messages --------------- 02747_ Acquired 8 matter. 02753_ R-06 Scavenger sends out distress signal. 02754_ Acquired 8 matter. 02755_ R-06 Scavenger collects Wheel. 02763_ Lgt. Treads destroyed. 02766_ The unstable cave ceiling collapses. 02767_ EM Pulse Gun destroyed. 02767_ R-06 Scavenger destroyed. 02769_ Ion Engine destroyed. 02770_ K-01 Serf destroyed. 02771_ The unstable cave ceiling collapses. 02775_ D-53 Grenadier misfires. 02775_ R-06 Scavenger destroyed. 02776_ The unstable cave ceiling collapses. 02776_ Wheel crushed. 02778_ The unstable cave ceiling collapses. 02780_ Lgt. Treads destroyed. 02781_ EM Pulse Gun destroyed. 02781_ as-08684 destroyed. 02782_ Lgt. Treads destroyed. Map ----- +----------------------------------------------------+ | #??# #??????### ##?## ##?## ####??#####?## | | #??# #????????## ##???# ##?## #### #??## | | #??# #?????????####????# #??# ##??? | | ##??# #?????????????????# #?# ##?? | | #???# #?????????????????# #?# ### ##? | | ##### #?????????????????# ##?## ## | | # ##????????????????# #???# # | | # ### #???????????????####### ???# | | # #?# #?????????????????????# ???# | | # #?#### #?????????????????????# ## #??## | | # #????# #?????????????????????# ?# #???## | | # #????# #????? """????????????# ?# #????##### | | # #????# #???? ?????????# ?? #????????## | | # ###??# #???? """%""?????????# #? #?????????## | | ##?# #???" "?????????# ?? ??????????? | | ### #??""" "?????????# ??###??????????? | | ## #? ???????????## ???????????????? | | !#### # #???????????*!?????????????????? | | [ % #????????###%###???????????????? | | ## = % #???????? #!! ##??????????????? | | #### #### #???##### ##??????#??????? | | ##??####### % ##??## !* ##??? # ?????? | | ##??????????? ###??## = #?? ?????? | | #????????????# #???# ## #????? | | ?????????????# #### # =! ????? | | ?????????????# ud d @ %| % #?????? | | ?????????????######## #???????????? | | ????????????????????# ##???????????? | | ????????????????????## % #???????????? | | ????????????????????##a% #???????????? | | ???????????????????## ### ##???????????? | | ??????????????????## <|= #???????????? | | ?????????????###### ! ###???????????? | | #????????????# % ##?????????????? | | #????????????# = #??????????????? | | #?????????#### ## ### ##??????????????? | | #?????????# ### #?## ##???????????????? | | #?????????# #?# #???###????????????????? | | #?????????#!#####?# #??????????????????????? | | #?????????# #?????## #??????????????????????? | | #?????????# #??????## # #??????????????????????? | | #?????????# #???????##### #??????????????????????? | | #####?????# #???????????# #??????????????????????? | | #???### #???????????# #??????????????????????? | | #??## #???????????? #??????????????????????? | | #### #???????????? #??????????????????????? | | # ###???????????? ??????????????????????? | | < ##??????????????#???????????????????????? | | ######???????????????????????????????????????? | | "" #????????????????????????????????????????????? | +----------------------------------------------------+ Best States ------------- Heat Dissipation 25 Energy Generation 10 Energy Capacity 250 Matter Stores 300 Matter Capacity 300 Sight Range 16 Terrain Scan Density 10 Utility Shielding 33 Evasion (%) 40 Targeting Accuracy 5 Recoil Reduction 2 Item Schematics ----------------- Huge Storage Unit | -10/Materials | Hacked Robot Schematics ------------------ None Fabricated ------------ Nothing Alien Tech Used ----------------- None Achievements -------------- None Challenges ------------ None Game ------ Seed MissileFissionInitializer Manual? 0 Play Time 00:15:38 Cumulative 310.3 hours Start 2022.06.01 @ 05:16:01 End 2022.06.01 @ 05:30:46 Sessions 1 Manual Loads 0 Difficulty Rogue Special Mode None Game No. 136 Rogue 136 Adventurer 0 Explorer 0 Win Type - Total 8 Types 5/0/1/1/0/0/0/1/0 Lore% 88 Gallery% 91 Achievement% 70 Wizard Run 0 Options --------- ASCII 1 Keyboard 1 Movement Vi Keybinds 0 Fullscreen 2 Font 18/Cog Map View 76x50 Tactical HUD 1 Map Filters NONE Filters NONE Steam 0 RUN: 6d4c011b-9ebe-48cc-beca-fea99eb1ba76